bitfinex/quotes_BTCUSD_20220212
["timestamp","ask_amount","ask_price","bid_price","bid_amount"]
[1644676970014,0.33948119,41944.0,41924.0,0.5941]
[1644676970015,0.07027362,41938.0,41924.0,0.5941]
[1644676970219,0.85,41943.0,41924.0,0.5941]
[1644676970414,0.95,41943.0,41924.0,0.5941]
[1644676970815,0.2406048,41938.0,41924.0,0.5941]
[1644676971215,0.06641622,41932.0,41924.0,0.5941]
[1644676971489,0.06641622,41932.0,41929.0,0.00038899]
[1644676971689,0.3906048,41938.0,41918.0,0.18751811]
[1644676971882,0.19802973,41931.0,41918.0,0.18596914]
[1644676972081,0.17462687,41931.0,41917.0,0.82289405]
[1644676972281,0.17462687,41931.0,41917.0,0.82134238]
[1644676972282,0.26975136,41928.0,41917.0,0.82134238]
[1644676972482,0.26975136,41928.0,41917.0,0.59139078]
[1644676972681,0.26975136,41928.0,41917.0,0.5898754]
[1644676972682,0.26475136,41928.0,41917.0,0.5898754]
[1644676972887,0.08425226,41923.0,41917.0,0.58836345]
[1644676973088,0.08425226,41923.0,41917.0,0.58681787]
[1644676973283,0.08425226,41923.0,41908.0,0.0484959]
[1644676973483,0.26257481,41920.0,41907.0,0.22783628]
[1644676973681,0.26257481,41920.0,41907.0,0.22634149]
[1644676973883,0.20776717,41912.0,41903.0,1.33891546]
[1644676974083,0.20776717,41912.0,41898.0,0.09924161]
[1644676974284,0.20776717,41912.0,41897.0,0.00014936]
[1644676974783,0.22304072,41911.0,41898.0,0.24860702]
[1644676975126,0.22304072,41911.0,41902.0,0.00038907]
[1644676975314,0.20776717,41912.0,41902.0,0.00038907]
[1644676975622,0.4,41921.0,41902.0,0.00038907]
[1644676975623,0.059686,41919.0,41903.0,0.33334]
[1644676975915,0.163268,41923.0,41903.0,0.03349196]
[1644676975916,0.3,41918.0,41903.0,0.03349196]
[1644676976114,0.3,41922.0,41898.0,0.27839989]
[1644676976316,0.2264567,41916.0,41909.0,0.00038905]
[1644676976613,0.3,41922.0,41909.0,0.00038905]
[1644676976614,0.19400639,41919.0,41909.0,0.00038905]
[1644676977213,0.3,41922.0,41907.0,0.25324291]
[1644676977414,0.0439,41923.0,41907.0,0.25324291]
[1644676977617,0.21965156,41922.0,41909.0,0.20686871]
[1644676977817,0.21965156,41922.0,41907.0,0.25324291]
[1644676978124,0.24566585,41921.0,41907.0,0.25324291]
[1644676978972,0.24566585,41921.0,41907.0,0.47888292]
[1644676979775,0.24566585,41921.0,41912.0,0.0003795]
[1644676980781,0.24566585,41921.0,41907.0,0.47888292]
[1644676980976,0.32232375,41927.0,41914.0,0.00037949]
[1644676981178,0.30054666,41936.0,41914.0,0.00037949]
[1644676981179,0.3,41932.0,41915.0,0.33334]
[1644676981378,0.00037931,41935.0,41915.0,0.05]
[1644676981576,0.00037931,41935.0,41914.0,0.04543097]
[1644676981975,0.25094997,41933.0,41923.0,0.18937807]
[1644676982175,0.25094997,41933.0,41920.0,0.24883298]
[1644676982176,0.33404431,41933.0,41920.0,0.24883298]
[1644676982377,0.33404431,41933.0,41916.0,0.2016]
[1644676982651,0.25094997,41933.0,41923.0,0.00037946]
[1644676983239,0.20031602,41927.0,41916.0,0.20444408]
[1644676983444,0.20031602,41927.0,41926.0,0.0003498]
[1644676983641,0.20031602,41927.0,41926.0,0.00138482]
[1644676983838,0.07685623,41930.0,41926.0,0.00138482]
[1644676984241,0.3,41929.0,41926.0,0.00138482]
[1644676984443,0.05,41927.0,41926.0,0.00103502]
[1644676984641,0.3,41927.0,41926.0,0.00137023]
[1644676984842,0.05,41927.0,41926.0,0.00137023]
[1644676985039,0.1939,41928.0,41926.0,0.00137023]
[1644676985241,0.21769002,41927.0,41926.0,0.00137023]
[1644676985639,0.21769002,41927.0,41926.0,0.00103502]
[1644676986464,0.5107331,41927.0,41926.0,0.00103502]
[1644676986665,0.6607331,41927.0,41926.0,0.00103502]
[1644676986864,0.7107331,41927.0,41926.0,0.00103502]
[1644676987066,0.6857331,41927.0,41926.0,0.00103502]
[1644676987463,0.6607331,41927.0,41926.0,0.00103502]
[1644676988064,0.21769002,41927.0,41926.0,0.00103502]
[1644676989667,0.513925,41927.0,41926.0,0.00103502]
[1644676989869,0.613925,41927.0,41926.0,0.00103502]
[1644676990325,0.39623498,41927.0,41926.0,0.00103502]
[1644676990525,0.059667,41931.0,41926.0,0.00103502]
[1644676990725,0.54091755,41933.0,41926.0,0.00103502]
[1644676990726,0.5323026,41933.0,41926.0,0.00103502]
[1644676990925,0.83276298,41933.0,41926.0,0.00103502]
[1644676991126,0.83276298,41933.0,41926.0,0.00076264]
[1644676991327,0.23886257,41930.0,41926.0,0.00076264]
[1644676991526,0.28346245,41929.0,41926.0,0.00154226]
[1644676991725,0.23886257,41930.0,41926.0,0.00154226]
[1644676991925,0.40482057,41933.0,41926.0,0.001898]
[1644676992128,0.30054666,41934.0,41926.0,0.001898]
[1644676992326,0.00036561,41935.0,41926.0,0.001898]
[1644676992327,0.30091227,41935.0,41926.0,0.001898]
[1644676992527,0.00036561,41935.0,41926.0,0.001898]
[1644676992728,0.00036561,41935.0,41927.0,0.33334]
[1644676992927,0.00036561,41935.0,41931.0,0.24322914]
[1644676993126,0.24948931,41938.0,41931.0,0.24426416]
[1644676993328,0.30054666,41940.0,41931.0,0.24426416]
[1644676993529,0.059653,41941.0,41931.0,0.24426416]
[1644676993530,0.30054666,41941.0,41931.0,0.24426416]
[1644676993732,0.01,41949.0,41933.0,0.33334]
[1644676993733,0.30054666,41944.0,41933.0,0.33334]
[1644676993974,0.01,41949.0,41935.0,0.33334]
[1644676993975,0.30054666,41948.0,41935.0,0.33334]
[1644676994175,0.30054666,41948.0,41935.0,0.001035]
[1644676994368,0.30054666,41948.0,41943.0,0.21635267]
[1644676994769,0.31054666,41949.0,41943.0,0.21635267]
[1644676994972,0.00039081,41944.0,41943.0,0.21635267]
[1644676995372,0.00039081,41944.0,41943.0,0.54969267]
[1644676995571,0.00039081,41944.0,41940.0,0.001035]
[1644676995771,0.00039081,41944.0,41940.0,0.00103496]
[1644676996169,0.01,41949.0,41941.0,0.33334]
[1644676996170,0.2006759,41945.0,41941.0,0.33334]
[1644676997171,0.2006759,41948.0,41941.0,0.33334]
[1644676997369,0.2006759,41948.0,41942.0,0.20394753]
[1644676997370,0.0003908,41945.0,41942.0,0.20394753]
[1644676997623,0.0003908,41945.0,41943.0,0.33334]
[1644676998218,0.2106759,41949.0,41943.0,0.33334]
[1644676998618,0.00026091,41946.0,41943.0,0.33334]
[1644676999224,0.00026091,41946.0,41943.0,0.58004635]
[1644676999420,0.01,41949.0,41943.0,0.58004635]
[1644676999421,0.00526091,41949.0,41943.0,0.58004635]
[1644676999920,0.00037826,41947.0,41943.0,0.58004635]
[1644677000322,0.00037826,41947.0,41943.0,0.63004635]
[1644677000524,0.00037826,41947.0,41943.0,0.68004635]
[1644677000725,0.00526091,41949.0,41944.0,0.33334]
[1644677000924,0.00526091,41949.0,41945.0,0.04887758]
[1644677001123,0.00526091,41949.0,41946.0,0.33334]
[1644677001390,0.00526091,41949.0,41946.0,0.43334]
[1644677001595,0.00526091,41949.0,41948.0,0.33334]
[1644677001596,6.091e-05,41949.0,41948.0,0.33334]
[1644677001795,0.26084488,41959.0,41950.0,0.33334]
[1644677001796,0.2006759,41958.0,41950.0,0.33334]
[1644677001990,0.2106759,41959.0,41952.0,0.33334]
[1644677002392,0.01,41959.0,41954.0,0.33334]
[1644677002592,0.01,41959.0,41957.0,0.33334]
[1644677002792,0.01,41959.0,41957.0,0.38334]
[1644677002994,0.25084488,41966.0,41958.0,1.24669902]
[1644677002995,0.2006759,41966.0,41958.0,1.24669902]
[1644677003195,0.01,41969.0,41960.0,0.9923]
[1644677003196,0.0053449,41969.0,41960.0,0.9923]
[1644677003392,0.00024585,41968.0,41961.0,0.51954]
[1644677003591,0.00157223,41966.0,41963.0,0.33334]
[1644677003793,0.25084488,41976.0,41971.0,0.18933877]
[1644677003794,0.2006759,41976.0,41971.0,0.18933877]
[1644677003994,0.079,41978.0,41972.0,0.37724]
[1644677004193,0.079,41978.0,41972.0,0.42724]
[1644677004399,0.079,41978.0,41974.0,0.33334]
[1644677004592,0.079,41978.0,41975.0,0.0439]
[1644677004794,0.2006759,41986.0,41977.0,0.9923]
[1644677004993,0.26084488,41989.0,41977.0,0.9923]
[1644677004994,0.1956759,41988.0,41985.0,0.19293244]
[1644677005230,0.01,41989.0,41986.0,0.1509946]
[1644677005426,0.01,41989.0,41987.0,0.47554232]
[1644677005627,0.0001,41989.0,41987.0,0.14288732]
[1644677005825,0.015,41996.0,41995.0,0.332655]
[1644677006325,0.01,41999.0,41995.0,0.332655]
[1644677006326,0.01,41999.0,41996.0,0.85]
[1644677006527,0.01,41999.0,41997.0,0.37894636]
[1644677006730,0.3002541,42009.0,41998.0,0.926555]
[1644677006929,0.0002541,42009.0,41998.0,0.97034561]
[1644677007124,0.0002541,42009.0,41998.0,0.88316199]
[1644677007325,0.08276165,42009.0,41999.0,0.38192281]
[1644677007526,0.08276165,42009.0,42001.0,0.332655]
[1644677007527,0.0002541,42009.0,42001.0,0.332655]
[1644677007730,0.0002541,42009.0,42002.0,0.29447879]
[1644677007926,0.182474,42008.0,42002.0,0.0439]
[1644677008126,0.0002541,42009.0,42003.0,0.332655]
[1644677008326,0.0002541,42009.0,42004.0,0.0439]
[1644677008526,0.0002541,42009.0,42005.0,0.332655]
[1644677008726,0.079,42016.0,42007.0,0.04081872]
[1644677008727,0.05455373,42016.0,42007.0,0.04081872]
[1644677008971,0.01,42019.0,42007.0,0.04081872]
[1644677008972,0.192474,42019.0,42018.0,0.06691964]
[1644677009173,0.00530624,42019.0,42018.0,0.06325321]
[1644677009370,0.18778024,42019.0,42018.0,0.06325321]
[1644677010171,0.18778024,42019.0,42005.0,0.05]
[1644677010172,0.00086407,42017.0,42007.0,0.0439]
[1644677010572,0.19009402,42009.0,42007.0,0.0439]
[1644677010777,0.00300931,42009.0,42008.0,0.33249]
[1644677011074,0.00300931,42009.0,42007.0,0.37639]
[1644677011075,0.09842931,42009.0,42007.0,0.37639]
[1644677011272,0.19550432,42002.0,42001.0,0.33249]
[1644677011672,0.19550432,42002.0,42001.0,0.43249]
[1644677012076,0.19550432,42002.0,42001.0,0.38249]
[1644677012272,0.19550432,42002.0,42001.0,0.1]
[1644677012472,0.19550432,42002.0,42001.0,0.43249]
[1644677012721,0.19050432,42002.0,42001.0,0.43249]
[1644677012920,0.19050432,42002.0,42000.0,0.0939]
[1644677013123,0.19050432,42002.0,42001.0,0.33249]
[1644677013520,0.19050432,42002.0,42001.0,0.37639]
[1644677013921,0.19060432,42002.0,42001.0,0.37639]
[1644677014122,0.36840932,42002.0,42001.0,0.0439]
[1644677014322,0.36840932,42002.0,41997.0,0.18926199]
[1644677014323,0.19060432,42002.0,41997.0,0.18926199]
[1644677014521,0.19060432,42002.0,41990.0,0.63583824]
[1644677014522,0.177805,42001.0,41988.0,0.18926199]
[1644677014725,0.19060432,42002.0,41988.0,0.18926199]
[1644677014726,0.177805,41999.0,41988.0,0.18926199]
[1644677014923,0.177805,41999.0,41986.0,0.21630712]
[1644677015128,0.24372331,41990.0,41986.0,0.21630712]
[1644677015323,0.24372331,41990.0,41981.0,1.0295]
[1644677015324,0.177805,41989.0,41981.0,1.0295]
[1644677015524,0.177805,41989.0,41980.0,0.18926199]
[1644677015725,0.177805,41989.0,41982.0,0.18926199]
[1644677015726,0.221705,41989.0,41982.0,0.18926199]
[1644677015925,0.177805,41988.0,41978.0,0.079]
[1644677016124,0.06430629,41984.0,41978.0,0.079]
[1644677016375,0.43914118,41979.0,41978.0,0.079]
[1644677016775,0.5575483,41979.0,41978.0,0.079]
[1644677016973,0.74037668,41979.0,41978.0,0.079]
[1644677017179,0.0439,41980.0,41978.0,0.079]
[1644677017378,0.00024021,41981.0,41979.0,0.33249]
[1644677017576,0.00024021,41981.0,41978.0,0.079]
[1644677017975,0.00024021,41981.0,41971.0,0.332705]
[1644677018176,0.29698527,41988.0,41973.0,0.40387767]
[1644677018177,0.21599514,41985.0,41973.0,0.40387767]
[1644677018375,0.21599514,41985.0,41973.0,0.23839375]
[1644677018376,0.00024021,41982.0,41973.0,0.23839375]
[1644677018578,0.00024021,41982.0,41966.0,0.1]
[1644677018776,0.00024021,41982.0,41966.0,0.05]
[1644677018977,0.00024021,41982.0,41967.0,0.332705]
[1644677019278,0.08296804,41982.0,41967.0,0.482705]
[1644677019476,0.08296804,41982.0,41964.0,0.0011]
[1644677019477,0.198298,41976.0,41964.0,0.0011]
[1644677019680,0.55410367,41975.0,41964.0,0.0011]
[1644677019880,0.37133167,41975.0,41965.0,0.332705]
[1644677020138,0.0002458,41975.0,41965.0,0.332705]
[1644677020326,0.1985438,41976.0,41965.0,0.332705]
[1644677020526,0.1985438,41976.0,41964.0,0.0011]
[1644677020527,0.24004623,41969.0,41964.0,0.0011]
[1644677020725,0.0002458,41975.0,41964.0,0.0011]
[1644677020726,0.2834147,41975.0,41965.0,0.24288884]
[1644677020926,0.0002458,41974.0,41966.0,0.332705]
[1644677021130,0.0002458,41975.0,41965.0,0.24288884]
[1644677021326,0.0002458,41977.0,41965.0,0.24288884]
[1644677021526,0.29215252,41978.0,41965.0,0.24288884]
[1644677021728,0.19360342,41972.0,41965.0,0.24288884]
[1644677021927,0.29205252,41978.0,41966.0,0.332705]
[1644677022128,0.0002458,41976.0,41966.0,0.332705]
[1644677022327,0.0439,41979.0,41968.0,0.85]
[1644677022328,0.1341458,41979.0,41968.0,0.85]
[1644677022530,0.00024581,41978.0,41967.0,0.332705]
[1644677022727,0.1341458,41979.0,41965.0,0.29288884]
[1644677022930,0.1341458,41979.0,41969.0,0.23219474]
[1644677022931,0.00024581,41978.0,41969.0,0.23219474]
[1644677023232,0.0001,41980.0,41977.0,0.21297253]
[1644677023432,0.00087761,41985.0,41978.0,0.332705]
[1644677023629,0.00024581,41984.0,41978.0,0.332705]
[1644677023888,0.00087761,41985.0,41977.0,0.26297253]
[1644677024387,0.22765412,41987.0,41977.0,0.26297253]
[1644677024585,0.00021946,41983.0,41977.0,0.26297253]
[1644677024785,0.00021946,41983.0,41979.0,0.332705]
[1644677024985,0.00021946,41983.0,41977.0,0.26297253]
[1644677025191,0.00021946,41983.0,41978.0,0.332705]
[1644677025389,0.0001,41986.0,41979.0,0.332705]
[1644677025587,0.0001,41986.0,41977.0,0.26297253]
[1644677025790,0.1,41992.0,41977.0,0.26297253]
[1644677025791,0.0001,41991.0,41977.0,0.26297253]
[1644677026189,0.13454592,41993.0,41971.0,0.1]
[1644677026190,0.29315807,41992.0,41971.0,0.1]
[1644677026389,0.0001,41991.0,41969.0,0.1423]
[1644677026590,0.0001,41991.0,41975.0,0.26172395]
[1644677026591,0.22526066,41988.0,41975.0,0.26172395]
[1644677026788,0.00036325,41984.0,41975.0,0.31172395]
[1644677027088,0.00036325,41984.0,41978.0,0.24902308]
[1644677027288,0.00036325,41984.0,41979.0,0.332705]
[1644677027488,0.00036325,41984.0,41978.0,0.24902308]
[1644677027489,0.00036325,41984.0,41981.0,0.332705]
[1644677027737,0.0001,41991.0,41982.0,0.332705]
[1644677027935,0.169134,42005.0,41980.0,0.0439]
[1644677027936,0.0001,41992.0,41980.0,0.0439]
[1644677028130,0.182772,41995.0,41980.0,0.0439]
[1644677028331,0.182772,41984.0,41980.0,0.0439]
[1644677028631,0.0001,41983.0,41980.0,0.0439]
[1644677028830,0.00036325,41985.0,41980.0,0.0439]
[1644677029031,0.08360623,41988.0,41980.0,0.0439]
[1644677029230,0.00036325,41984.0,41980.0,0.0439]
[1644677029430,0.00036325,41984.0,41980.0,0.332705]
[1644677029630,0.00036325,41984.0,41974.0,0.05]
[1644677029834,0.26927671,41984.0,41973.0,0.1939]
[1644677030033,0.0001,41983.0,41973.0,0.1939]
[1644677030534,0.0003755,41981.0,41975.0,0.23162323]
[1644677030731,0.0003755,41981.0,41976.0,0.0439]
[1644677031367,0.0001,41991.0,41976.0,0.0439]
[1644677031568,0.20106595,41990.0,41978.0,0.23841966]
[1644677031871,0.0003755,41981.0,41979.0,0.0439]
[1644677032073,0.0003755,41981.0,41979.0,0.0389]
[1644677032671,0.00034583,41983.0,41979.0,0.0389]
[1644677032873,0.00037549,41982.0,41979.0,0.0389]
[1644677033067,0.00047549,41982.0,41979.0,0.0389]
[1644677033469,0.00037549,41982.0,41979.0,0.0389]
[1644677033668,0.00037549,41982.0,41979.0,0.0289]
[1644677033868,0.00024583,41986.0,41979.0,0.0289]
[1644677034071,0.00035707,41983.0,41979.0,0.0289]
[1644677035129,0.00034583,41984.0,41979.0,0.0289]
[1644677035321,0.00035707,41983.0,41979.0,0.0289]
[1644677035525,0.00035707,41983.0,41980.0,0.475005]
[1644677035723,0.00035707,41983.0,41981.0,0.22331693]
[1644677035923,0.00035707,41983.0,41981.0,0.1862]
[1644677036122,0.00024583,41985.0,41982.0,0.36932909]
[1644677036324,0.00024583,41987.0,41984.0,0.332705]
[1644677036523,0.00024583,41987.0,41982.0,0.35731587]
[1644677036524,0.00021968,41984.0,41983.0,0.332705]
[1644677036728,0.00021968,41984.0,41983.0,0.71810764]
[1644677036924,0.0001,42001.0,41985.0,1.182705]
[1644677037124,0.0001,42001.0,41987.0,0.475005]
[1644677037322,0.0001,42001.0,41989.0,0.475005]
[1644677037525,0.0001,42001.0,41997.0,0.23396434]
[1644677037725,0.0001,42001.0,41999.0,0.03918516]
[1644677037926,0.0001,42001.0,42000.0,0.376481]
[1644677038133,0.0001,42001.0,42000.0,0.41331669]
[1644677038331,0.079,42016.0,42001.0,0.85]
[1644677038526,0.332581,42015.0,42006.0,0.18833004]
[1644677038726,0.079,42016.0,42006.0,0.05]
[1644677038973,0.07924623,42016.0,42006.0,0.05]
[1644677039572,0.07526248,42012.0,42002.0,0.0439]
[1644677039775,0.332581,42015.0,41997.0,0.0439]
[1644677039776,0.22516217,42010.0,41997.0,0.0439]
[1644677040073,0.332581,42009.0,41997.0,0.0439]
[1644677040472,0.332581,42008.0,41997.0,0.0439]
[1644677040680,0.00024623,42008.0,41998.0,0.04447542]
[1644677040873,0.08930466,42005.0,41997.0,0.27083972]
[1644677041074,0.06871545,41998.0,41997.0,0.0439]
[1644677041279,0.25163045,41998.0,41997.0,0.0439]
[1644677041476,0.332581,41997.0,41988.0,0.00040013]
[1644677041874,0.00024623,41997.0,41988.0,0.00040013]
[1644677042077,0.22545199,41999.0,41989.0,0.20604364]
[1644677042279,0.22545199,41999.0,41989.0,0.55332803]
[1644677042280,0.00024623,41997.0,41989.0,0.55332803]
[1644677042476,0.00024623,41999.0,41990.0,0.81352621]
[1644677042724,0.0004,41995.0,41990.0,0.18094521]
[1644677043326,0.0004,41995.0,41990.0,0.23094521]
[1644677043526,0.19668396,41994.0,41992.0,0.332581]
[1644677043724,0.0001,41993.0,41992.0,0.382581]
[1644677043922,0.0001,41993.0,41992.0,0.05]
[1644677044324,0.0001,41993.0,41992.0,0.03970217]
[1644677044528,0.0004,41995.0,41993.0,0.474881]
[1644677044726,0.20031167,42011.0,41996.0,0.29987643]
[1644677044925,0.20031167,42013.0,41996.0,0.29987643]
[1644677045127,0.00159971,42003.0,41996.0,0.29987643]
[1644677045327,0.00159971,42003.0,41998.0,0.332581]
[1644677045525,0.00159971,42003.0,41996.0,0.29987643]
[1644677045727,0.00159971,42003.0,41994.0,0.332581]
[1644677045930,0.0688825,42005.0,41996.0,0.1423]
[1644677046127,0.00039816,42005.0,41997.0,0.33297924]
[1644677046375,0.00039816,42005.0,41997.0,0.00039824]
[1644677046577,0.00039816,42005.0,41998.0,0.332581]
[1644677047179,0.3004675,42013.0,41998.0,0.332581]
[1644677047180,0.20031167,42009.0,42000.0,0.1423]
[1644677047379,0.25038959,42012.0,42005.0,0.23549169]
[1644677047380,0.20031167,42012.0,42005.0,0.23549169]
[1644677047582,0.20031167,42013.0,42006.0,0.6926593]
[1644677047780,0.20031167,42015.0,42006.0,0.8340385]
[1644677047978,0.28090398,42016.0,42007.0,0.332581]
[1644677048177,0.28090398,42016.0,42007.0,0.474881]
[1644677048380,0.079,42016.0,42008.0,0.04306284]
[1644677048582,0.00025639,42014.0,42009.0,0.332581]
[1644677048779,0.00025639,42014.0,42011.0,0.332581]
[1644677048977,0.00025639,42014.0,42011.0,0.32548289]
[1644677049682,0.00037129,42015.0,42011.0,0.32548289]
[1644677049877,0.00047129,42015.0,42009.0,0.05]
[1644677050129,0.00047129,42015.0,42007.0,0.1923]
[1644677050326,0.00047129,42015.0,42008.0,0.332507]
[1644677050524,0.00047129,42015.0,42008.0,0.1423]
[1644677050724,0.22297718,42015.0,42009.0,0.332507]
[1644677050925,0.00047129,42014.0,42009.0,0.332507]
[1644677051127,0.20031167,42015.0,42009.0,0.332507]
[1644677051325,0.27931167,42016.0,42009.0,0.332507]
[1644677051525,0.20031167,42015.0,42009.0,0.332507]
[1644677051724,0.25577209,42013.0,42009.0,0.332507]
[1644677052127,0.25577209,42013.0,42000.0,0.34463064]
[1644677052425,0.15031167,42012.0,41999.0,0.0439]
[1644677052625,0.15031167,42012.0,42000.0,0.332507]
[1644677052826,0.00024694,42012.0,42002.0,0.1423]
[1644677053025,0.00024694,42012.0,42001.0,0.32856199]
[1644677053026,0.00024694,42012.0,42008.0,0.40463345]
[1644677053225,0.07924694,42016.0,42009.0,0.8001855]
[1644677053425,0.00024694,42015.0,42011.0,0.1423]
[1644677053626,0.07962181,42016.0,42013.0,0.04138589]
[1644677053881,0.07962181,42016.0,42012.0,0.376407]
[1644677053882,0.07937487,42016.0,42014.0,0.376407]
[1644677054072,0.07937487,42016.0,42015.0,0.0439]
[1644677054274,0.07937487,42016.0,42015.0,0.376407]
[1644677054275,0.079,42016.0,42015.0,0.376407]
[1644677054775,0.079,42016.0,42015.0,0.426407]
[1644677055374,0.079,42016.0,42015.0,0.376407]
[1644677055974,0.079,42016.0,42015.0,0.426407]
[1644677056174,0.29859943,42016.0,42009.0,0.14262986]
[1644677056380,0.08756101,42013.0,42010.0,0.376395]
[1644677056575,0.0001,42012.0,42010.0,0.376395]
[1644677056776,0.0001,42015.0,42010.0,0.376395]
[1644677056977,0.00024694,42014.0,42010.0,0.376395]
[1644677057177,0.0001,42015.0,42010.0,0.376395]
[1644677057374,0.26992133,42012.0,42010.0,0.376395]
[1644677057636,0.67532936,42006.0,42001.0,0.000599]
[1644677057825,0.67532936,42006.0,42002.0,0.332495]
[1644677057826,0.0001,42005.0,42002.0,0.332495]
[1644677058425,0.2264877,42003.0,42002.0,0.332495]
[1644677058627,0.2265877,42003.0,42002.0,0.332495]
[1644677058825,0.0001,42003.0,42002.0,0.332495]
[1644677059131,0.0001,42005.0,42003.0,0.1423]
[1644677059328,0.0001,42005.0,42004.0,0.332495]
[1644677059726,0.0001,42005.0,42004.0,0.4694225]
[1644677060026,0.0001,42005.0,42004.0,0.332495]
[1644677061483,0.00024694,42011.0,42005.0,1.21841295]
[1644677061683,0.1677656,42024.0,42007.0,0.1423]
[1644677061684,0.00024694,42015.0,42007.0,0.1423]
[1644677061880,0.0004027,42012.0,42009.0,0.1423]
[1644677062082,0.0004027,42012.0,42011.0,0.201811]
[1644677062277,0.0004027,42012.0,42011.0,1.0810008]
[1644677062679,0.0004027,42012.0,42011.0,1.1810008]
[1644677062879,0.00024694,42015.0,42011.0,1.1810008]
[1644677063180,0.00040273,42014.0,42013.0,0.1423]
[1644677063379,0.00040273,42014.0,42013.0,0.568695]
[1644677063582,0.07924694,42016.0,42015.0,0.1423]
[1644677063583,0.00020273,42016.0,42015.0,0.1423]
[1644677063781,0.00020273,42016.0,42015.0,0.574795]
[1644677064184,0.00020273,42016.0,42015.0,0.432495]
[1644677065345,0.00020273,42016.0,42015.0,0.576395]
[1644677067448,0.00020273,42016.0,42015.0,0.91194694]
[1644677067449,2.73e-06,42016.0,42015.0,0.91194694]
[1644677067847,2.73e-06,42016.0,42015.0,0.576395]
[1644677068047,0.00122496,42018.0,42017.0,0.07095]
[1644677068245,0.00122496,42018.0,42017.0,0.21485]
[1644677069683,0.00122496,42018.0,42017.0,0.54807976]
[1644677069883,0.00122496,42018.0,42017.0,0.31485]
[1644677071085,0.00122496,42018.0,42017.0,0.21485]
[1644677071285,0.00122496,42018.0,42017.0,0.31485]
[1644677071689,0.00102215,42031.0,42022.0,0.059497]
[1644677071892,0.00102215,42031.0,42025.0,0.05]
[1644677072093,0.01,42039.0,42027.0,0.85]
[1644677072094,0.0002479,42038.0,42027.0,0.85]
[1644677072286,0.01,42039.0,42029.0,0.05]
[1644677072287,0.0002479,42036.0,42029.0,0.05]
[1644677072485,0.00031976,42045.0,42032.0,0.9]
[1644677072724,0.00031976,42045.0,42042.0,0.332495]
[1644677072922,0.00031976,42045.0,42043.0,0.08337938]
[1644677073123,0.00031976,42045.0,42043.0,0.0439]
[1644677073423,0.00031976,42045.0,42043.0,0.376395]
[1644677073620,0.00031976,42045.0,42044.0,0.332495]
[1644677073825,0.2171269,42045.0,42044.0,0.376395]
[1644677074322,0.00063952,42045.0,42044.0,0.376395]
[1644677074524,0.00063952,42045.0,42044.0,0.426395]
[1644677074726,0.00063952,42045.0,42044.0,0.476395]
[1644677075421,0.00063952,42045.0,42044.0,0.73903702]
[1644677075622,0.00063952,42045.0,42044.0,0.476395]
[1644677076696,0.0001,42050.0,42046.0,0.332495]
[1644677076697,0.00514073,42049.0,42046.0,0.332495]
[1644677077796,0.00514073,42049.0,42046.0,0.23653656]
[1644677080236,0.00514073,42049.0,42046.0,0.33653656]
[1644677080435,0.00514073,42049.0,42048.0,0.332495]
[1644677080937,0.00514073,42049.0,42048.0,0.382495]
[1644677084780,0.00514073,42049.0,42048.0,0.332495]
[1644677084973,0.00524073,42049.0,42048.0,0.327495]
[1644677085176,0.00524073,42049.0,42048.0,0.37331061]
[1644677085375,0.00524073,42049.0,42048.0,0.36086547]
[1644677085575,0.00524073,42049.0,42048.0,0.327495]
[1644677085775,0.00281539,42049.0,42048.0,0.327495]
[1644677085977,0.00281539,42049.0,42048.0,0.377495]
[1644677086176,0.00271539,42049.0,42048.0,0.377495]
[1644677089725,0.00271539,42049.0,42048.0,0.327495]
[1644677090429,0.00271539,42049.0,42048.0,0.377495]
[1644677090625,0.00271539,42049.0,42048.0,0.427495]
[1644677091025,0.00271539,42049.0,42048.0,0.327495]
[1644677091872,0.00271539,42049.0,42048.0,0.16680759]
[1644677092875,0.00271539,42049.0,42048.0,0.51578019]
[1644677093081,0.00271539,42049.0,42048.0,0.56578019]
[1644677093274,0.00271539,42049.0,42048.0,0.66578019]
[1644677093480,0.85,42047.0,42023.0,0.24932222]
[1644677093679,0.85,42047.0,42026.0,0.5]
[1644677093680,0.2,42029.0,42026.0,0.5]
[1644677093881,0.2,42029.0,42013.0,0.09669969]
[1644677093882,0.4,42027.0,42011.0,0.20169026]
[1644677094079,0.4,42027.0,42004.0,0.0022]
[1644677094080,0.05,42015.0,42004.0,0.0022]
[1644677094279,0.332497,42026.0,42004.0,0.0022]
[1644677094280,0.05,42011.0,42004.0,0.0022]
[1644677094481,0.0476,42010.0,42007.0,0.23685293]
[1644677094678,0.0001,42018.0,42009.0,0.65594962]
[1644677094877,0.000249,42025.0,42009.0,0.65594962]
[1644677094878,0.0476,42019.0,42009.0,0.65]
[1644677095137,0.0001,42025.0,42018.0,0.00594962]
[1644677095138,0.000249,42025.0,42018.0,0.00594962]
[1644677095332,0.000249,42026.0,42023.0,0.00594962]
[1644677095637,0.000249,42033.0,42023.0,0.00594962]
[1644677095831,0.08891021,42033.0,42028.0,0.08785839]
[1644677096030,0.0001,42032.0,42029.0,0.00594962]
[1644677096330,0.3001,42032.0,42028.0,0.08785839]
[1644677096529,0.0001,42031.0,42028.0,0.08785839]
[1644677096731,0.0001,42032.0,42028.0,0.08826212]
[1644677097130,0.0001,42032.0,42028.0,0.00040373]
[1644677097631,0.0001,42032.0,42024.0,0.0402558]
[1644677097833,0.0001,42032.0,42012.0,0.04259027]
[1644677097834,0.04405038,42028.0,42012.0,0.04259027]
[1644677098031,0.04405038,42028.0,42011.0,0.8001]
[1644677098032,0.3,42027.0,42011.0,0.7525]
[1644677098235,0.06820074,42017.0,42013.0,0.06134091]
[1644677098431,0.0001,42016.0,42010.0,0.03901583]
[1644677098634,0.0001,42024.0,42014.0,0.21257855]
[1644677098883,0.000249,42027.0,42017.0,0.04481598]
[1644677099078,0.000349,42028.0,42025.0,0.2108866]
[1644677099278,0.0001,42033.0,42025.0,0.2108866]
[1644677099480,0.06828287,42027.0,42025.0,0.2108866]
[1644677099678,0.06828287,42027.0,42021.0,0.04579862]
[1644677099679,0.0001,42026.0,42020.0,0.00594962]
[1644677100078,0.0001,42026.0,42009.0,0.05]
[1644677100079,0.0001,42026.0,42016.0,0.04559327]
[1644677100680,0.0001,42026.0,42016.0,0.26284394]